[Event "EYCC 2017"]
[Site "Mamaia"]
[Date "2017.09.12"]
[Round "7"]
[White "Ince, Safiye Oyku"]
[Black "Stepanyan, Eva"]
[Result "1/2-1/2"]
[ECO "C77"]
[WhiteElo "1737"]
[BlackElo "1927"]
[Annotator "NA RC"]
[PlyCount "97"]
[EventDate "2017.??.??"]
[EventType "swiss"]
[EventCountry "ROU"]
[SourceTitle "playchess.com"]
[Source "ChessBase"]
[SourceQuality "1"]
[TimeControl "40/5400+30:1800+30"]

1. e4 {[%emt 0:00:00]} e5 {[%emt 0:00:18]} 2. Nf3 {[%emt 0:00:00]} Nc6 {[%emt 0:00:09]} 3. Bb5 {[%emt 0:00:00]} a6 {[%emt 0:00:15]} 4. Ba4 {[%emt 0:00:00]} Nf6 {[%emt 0:00:19]} 5. d3 {[%emt 0:00:00]} Bc5 {[%emt 0:03:21]} 6. O-O {[%emt 0:00:17]} b5 {[%emt 0:02:19]} 7. Bb3 {[%emt 0:00:07]} d6 {[%emt 0:00:15]} 8. c3 {[%emt 0:00:40]} O-O {[%emt 0:01:39]} 9. h3 {[%emt 0:01:06]} h6 {[%emt 0:01:39]} 10. Re1 {[%emt 0:00:26]} Re8 {[%emt 0:04:19]} 11. Nbd2 {[%emt 0:01:07]} Bb6 {[%emt 0:02:41] C78: Spanische Partie (Archangelsk- und Möller-Variante)} (11... Be6 12. Nf1 d5 13. Ng3 Bf8 14. Qe2 Na5 15. Bc2 dxe4 16. dxe4 Bc4 17. Qe3 Nb7 18. Rd1 Qc8 19. Nh2 {1-0 (48) Leko,P (2741)-Tkachiev,V (2664) Moscow 2008}) 12. Nf1 {[%emt 0:01:22]} Ne7 {[%emt 0:02:50]} 13. Nh4 {[%emt 0:03:27]} c5 $146 {[%emt 0:04:46]} ({Vorgänger:} 13... g5 14. Qf3 Kg7 15. Ng3 gxh4 16. Nh5+ Nxh5 17. Qxf7+ Kh8 18. Qxh5 Ng8 19. Bxh6 Qd7 20. Bf7 Rf8 {1-0 (20) Vovk,A (2614)-Anton,T (2435) Arad 2014}) 14. Qf3 {[%emt 0:01:28]} Nc6 {[%emt 0:03:35]} 15. Qg3 {[%emt 0:06:06]} Kf8 {[%emt 0:07:51]} 16. Ne3 {[%emt 0:06:23]} Ne7 {[%emt 0:16:32]} 17. Qf3 {[%emt 0:09:22]} Neg8 {[%emt 0:05:25]} 18. g4 {[%emt 0:18:34]} Be6 {[%emt 0:07:56]} 19. Nd5 {[%emt 0:01:06]} Rc8 {[%emt 0:05:56]} 20. g5 {[%emt 0:02:47]} hxg5 {[%emt 0:01:39]} 21. Bxg5 {[%emt 0:00:02]} Bxd5 {[%emt 0:03:58]} 22. Bxd5 {[%emt 0:00:24]} Qd7 {[%emt 0:02:34]} 23. Kh2 {[%emt 0:00:19]} Bd8 $18 {[%emt 0:04:25]} 24. Rg1 {[%emt 0:00:53]} Be7 {[%emt 0:03:18]} 25. Rg2 {[%emt 0:13:34]} Red8 {[%emt 0:01:49]} 26. Rag1 {[%emt 0:00:16]} Rc7 {[%emt 0:02:34]} 27. Qg3 {[%emt 0:05:46]} Nh5 {[%emt 0:02:02]} 28. Bxe7+ {[%emt 0:00:31]} Qxe7 {[%emt 0:00:52]} 29. Qg4 {[%emt 0:00:02]} Ngf6 {[%emt 0:01:39]} 30. Qg5 {[%emt 0:00:07]} Ke8 {[%emt 0:07:29]} 31. Nf5 {[%emt 0:01:00]} Qf8 {[%emt 0:00:21]} 32. Nxg7+ {[%emt 0:00:30]} Qxg7 {[%emt 0:00:41]} 33. Qxg7 {[%emt 0:00:30]} Nxg7 {[%emt 0:00:05]} 34. Rxg7 {[%emt 0:00:01]} Nxd5 {[%emt 0:00:26]} 35. exd5 {[%emt 0:00:02]} Ke7 {[%emt 0:00:10]} 36. Rh7 {[%emt 0:00:37]} Kf6 {[%emt 0:00:36]} 37. h4 {[%emt 0:00:11]} c4 {[%emt 0:00:50]} 38. Rh6+ {[%emt 0:00:14]} Ke7 {[%emt 0:00:35]} 39. d4 {[%emt 0:00:26]} exd4 {[%emt 0:00:35]} 40. cxd4 {[%emt 0:00:00]} b4 {[%emt 0:00:19]} 41. Rh7 {[%emt 0:00:33]} c3 {[%emt 0:02:31]} 42. bxc3 {[%emt 0:00:46]} bxc3 {[%emt 0:00:21]} 43. Rhg7 {[%emt 0:00:52]} Rh8 {[%emt 0:02:11]} 44. Kh3 {[%emt 0:00:22]} Rc4 {[%emt 0:04:00]} 45. R7g4 {[%emt 0:00:19]} c2 {[%emt 0:01:45]} 46. Rc1 {[%emt 0:00:40]} a5 {[%emt 0:04:31]} 47. Re4+ {[%emt 0:01:00]} Kf6 {[%emt 0:00:50]} 48. Kg4 {[%emt 0:00:24]} Kg6 {[%emt 0:00:55]} 49. Kf3 {[%emt 0:00:33]} 1/2-1/2

[Event "EYCC 2017"]
[Site "Mamaia"]
[Date "2017.09.12"]
[Round "7"]
[White "Alekseenko, Mariya"]
[Black "Bondareva, Daria"]
[Result "1/2-1/2"]
[ECO "A20"]
[WhiteElo "1731"]
[BlackElo "1754"]
[Annotator "NA RC"]
[PlyCount "50"]
[EventDate "2017.??.??"]
[EventType "swiss"]
[EventCountry "ROU"]
[SourceTitle "playchess.com"]
[Source "ChessBase"]
[SourceQuality "1"]
[TimeControl "40/5400+30:1800+30"]

1. c4 {[%emt 0:00:00]} e5 {[%emt 0:00:02]} 2. g3 {[%emt 0:00:00]} Nf6 {[%emt 0:00:16]} 3. Bg2 {[%emt 0:00:00]} c6 {[%emt 0:00:07]} 4. d4 {[%emt 0:00:00]} exd4 {[%emt 0:00:05]} 5. Qxd4 {[%emt 0:00:08]} d5 {[%emt 0:00:03]} 6. Nc3 {[%emt 0:02:53]} Be6 {[%emt 0:00:34]} 7. cxd5 {[%emt 0:00:51]} cxd5 {[%emt 0:00:18]} 8. Bg5 {[%emt 0:01:57]} Be7 {[%emt 0:07:50]} 9. Nf3 {[%emt 0:02:43]} Nc6 {[%emt 0:00:50]} 10. Qa4 {[%emt 0:01:03]} O-O {[%emt 0:02:24]} 11. O-O {[%emt 0:01:14]} h6 {[%emt 0:14:57]} 12. Bf4 {[%emt 0:00:44]} a6 {[%emt 0:05:06]} 13. Nd4 {[%emt 0:03:27]} Qb6 {[%emt 0:07:46]} 14. Nxc6 {[%emt 0:19:33]} bxc6 {[%emt 0:01:32]} 15. Qc2 {[%emt 0:02:31]} Rac8 {[%emt 0:04:53]} 16. Na4 {[%emt 0:07:50]} Qa7 {[%emt 0:01:48]} 17. Rac1 {[%emt 0:03:53]} c5 {[%emt 0:06:47]} 18. Rfd1 {[%emt 0:01:26]} Rfd8 {[%emt 0:03:31]} 19. Bd2 {[%emt 0:09:50]} a5 {[%emt 0:12:17]} 20. Qc3 {[%emt 0:02:27]} Rf8 {[%emt 0:00:39]} 21. b3 {[%emt 0:01:45]} Bd8 {[%emt 0:04:30]} 22. Bf4 {[%emt 0:07:26]} Be7 {[%emt 0:01:58]} 23. Bd2 {[%emt 0:00:15]} Bd8 {[%emt 0:00:11]} 24. Bf4 {[%emt 0:00:09]} Be7 {[%emt 0:00:22]} 25. Bd2 {[%emt 0:00:17]} Bd8 1/2-1/2

[Event "EYCC 2017"]
[Site "Mamaia"]
[Date "2017.09.12"]
[Round "7"]
[White "Royal, Shreyas"]
[Black "Samunenkov, Igor"]
[Result "1-0"]
[ECO "A57"]
[WhiteElo "1700"]
[BlackElo "1794"]
[Annotator "NA RC"]
[PlyCount "115"]
[EventDate "2017.??.??"]
[EventType "swiss"]
[EventCountry "ROU"]
[SourceTitle "playchess.com"]
[Source "ChessBase"]
[SourceQuality "1"]
[TimeControl "40/5400+30:1800+30"]

1. d4 {[%emt 0:00:00]} c5 {[%emt 0:00:09]} 2. d5 {[%emt 0:00:38]} Nf6 {[%emt 0:00:19]} 3. c4 {[%emt 0:00:48]} b5 {[%emt 0:00:11]} 4. cxb5 {[%emt 0:00:55]} a6 {[%emt 0:00:18]} 5. f3 {[%emt 0:00:37]} d6 {[%emt 0:04:09]} 6. e4 {[%emt 0:01:02]} g6 {[%emt 0:02:54]} 7. Nc3 {[%emt 0:02:23]} Bg7 {[%emt 0:02:00]} 8. Nge2 {[%emt 0:01:07]} O-O {[%emt 0:08:33]} 9. Ng3 {[%emt 0:01:28]} axb5 {[%emt 0:06:41]} 10. Bxb5 {[%emt 0:01:24]} Ba6 {[%emt 0:03:47]} 11. Bxa6 {[%emt 0:01:31]} Nxa6 {[%emt 0:01:34]} 12. O-O {[%emt 0:01:21]} Nd7 {[%emt 0:05:48]} 13. Be3 {[%emt 0:02:52]} Ne5 {[%emt 0:03:28]} 14. Qe2 {[%emt 0:03:59]} c4 {[%emt 0:11:53]} 15. Rab1 {[%emt 0:03:29]} Qa5 {[%emt 0:04:46]} 16. Qd2 {[%emt 0:04:01]} Nd3 {[%emt 0:01:38]} 17. Nge2 {[%emt 0:01:09]} Nac5 {[%emt 0:09:54]} 18. Nd4 {[%emt 0:03:25]} Qc7 {[%emt 0:06:48]} 19. b3 {[%emt 0:03:34]} cxb3 {[%emt 0:06:34]} 20. axb3 {[%emt 0:00:12]} Nb4 {[%emt 0:01:48]} 21. Ncb5 {[%emt 0:03:24]} Qa5 {[%emt 0:00:19]} 22. Qc3 {[%emt 0:00:36]} Ncd3 {[%emt 0:02:47]} 23. Ra1 {[%emt 0:06:42]} Qb6 {[%emt 0:00:36]} 24. Qd2 {[%emt 0:01:08]} Rxa1 {[%emt 0:02:02]} 25. Rxa1 {[%emt 0:00:17]} Rc8 {[%emt 0:02:33]} 26. h3 {[%emt 0:01:28]} Bxd4 {[%emt 0:04:12]} 27. Nxd4 {[%emt 0:00:14]} Qb7 {[%emt 0:00:37]} 28. Nc6 {[%emt 0:03:47]} Nxc6 {[%emt 0:02:16]} 29. Qxd3 {[%emt 0:00:12]} Nb4 {[%emt 0:00:52]} 30. Qd2 {[%emt 0:02:59]} Nc2 {[%emt 0:02:07]} 31. Rb1 {[%emt 0:01:23]} Qb4 {[%emt 0:00:59]} 32. Qxb4 {[%emt 0:00:23]} Nxb4 {[%emt 0:00:08]} 33. Bd2 {[%emt 0:00:07]} Rb8 {[%emt 0:01:46]} 34. Bxb4 {[%emt 0:00:09]} Rxb4 {[%emt 0:00:10]} 35. Kf2 {[%emt 0:00:04]} Kf8 {[%emt 0:01:03]} 36. Ke3 {[%emt 0:00:04]} Rb8 {[%emt 0:00:49]} 37. b4 {[%emt 0:00:06]} Ke8 {[%emt 0:00:25]} 38. Kd4 {[%emt 0:00:13]} Rc8 {[%emt 0:00:35]} 39. b5 {[%emt 0:00:00]} Kd7 {[%emt 0:00:00]} 40. b6 {[%emt 0:00:00]} e5+ {[%emt 0:01:35]} 41. dxe6+ {[%emt 0:01:06]} fxe6 {[%emt 0:00:11]} 42. f4 {[%emt 0:01:51]} h5 {[%emt 0:04:34]} 43. g4 {[%emt 0:00:14]} hxg4 {[%emt 0:00:38]} 44. hxg4 {[%emt 0:00:07]} Rb8 {[%emt 0:00:52]} 45. b7 {[%emt 0:00:40]} Kc7 {[%emt 0:01:10]} 46. f5 {[%emt 0:00:07]} exf5 {[%emt 0:04:33]} 47. exf5 {[%emt 0:00:10]} gxf5 {[%emt 0:00:09]} 48. gxf5 {[%emt 0:00:06]} Rxb7 {[%emt 0:00:16]} 49. Rxb7+ {[%emt 0:00:06]} Kxb7 {[%emt 0:00:12]} 50. f6 {[%emt 0:00:05]} Kc7 {[%emt 0:00:26]} 51. f7 {[%emt 0:00:05]} Kd7 {[%emt 0:00:10]} 52. f8=Q {[%emt 0:00:08]} Ke6 {[%emt 0:00:10]} 53. Qh6+ {[%emt 0:00:07]} Ke7 {[%emt 0:00:05]} 54. Kd5 {[%emt 0:00:04]} Kd7 {[%emt 0:00:07]} 55. Qg7+ {[%emt 0:00:08]} Kc8 {[%emt 0:00:09]} 56. Kxd6 {[%emt 0:00:07]} Kb8 {[%emt 0:00:08]} 57. Kc6 {[%emt 0:00:06]} Ka8 {[%emt 0:00:07]} 58. Qb7# 1-0

[Event "EYCC 2017"]
[Site "Mamaia"]
[Date "2017.09.12"]
[Round "7"]
[White "Tsotsonava, Elene"]
[Black "Toncheva, Nadya"]
[Result "1-0"]
[ECO "B42"]
[WhiteElo "1644"]
[BlackElo "1802"]
[Annotator "NA RC"]
[PlyCount "77"]
[EventDate "2017.??.??"]
[EventType "swiss"]
[EventCountry "ROU"]
[SourceTitle "playchess.com"]
[Source "ChessBase"]
[SourceQuality "1"]
[TimeControl "40/5400+30:1800+30"]

1. e4 {[%emt 0:00:00]} c5 {[%emt 0:00:02]} 2. Nf3 {[%emt 0:00:00]} e6 {[%emt 0:00:04]} 3. d4 {[%emt 0:00:00]} cxd4 {[%emt 0:00:02]} 4. Nxd4 {[%emt 0:00:00]} a6 {[%emt 0:00:04]} 5. Bd3 {[%emt 0:00:00]} Nf6 {[%emt 0:00:03]} 6. Qe2 {[%emt 0:00:00]} d6 {[%emt 0:00:02]} 7. c4 {[%emt 0:00:00]} Qc7 {[%emt 0:00:14]} 8. O-O {[%emt 0:00:15]} g6 {[%emt 0:00:35]} 9. Nc3 {[%emt 0:00:07]} Bg7 {[%emt 0:00:09]} 10. Nf3 {[%emt 0:00:26] B42: Sicilian: Kan Variation: 5 Bd3} Nc6 {[%emt 0:00:40]} (10... O-O 11. h3 Nc6 12. Be3 Nd7 13. Rac1 Nde5 14. Rfd1 Nxf3+ 15. Qxf3 Ne5 16. Qe2 b6 17. b3 Bb7 18. Bb1 Rfd8 {0-1 (61) Volokitin,A (2624)-Vallejo Pons,F (2711) Almaty 2016}) 11. Bf4 {[%emt 0:01:04]} Nh5 {[%emt 0:02:36]} 12. Bg5 {[%emt 0:09:40]} Bxc3 {[%emt 0:05:13]} 13. bxc3 {[%emt 0:00:37]} O-O $146 {[%emt 0:00:10]} ({Find the theoretical novelty and annotate with similar games:} 13... f6 14. Be3 O-O 15. Nd2 e5 16. g3 Bh3 17. Rfb1 Ng7 {1-0 (45) Rudolf,A (2344)-Schneider,V (2339) Nagykanizsa 2010}) 14. Rfd1 {[%emt 0:04:39]} e5 {[%emt 0:00:28]} 15. Qe3 {[%emt 0:10:37]} Na5 {[%emt 0:05:46]} 16. Be2 {[%emt 0:09:58]} Be6 {[%emt 0:15:06]} 17. Nd2 {[%emt 0:10:35]} Ng7 {[%emt 0:03:36]} 18. Rab1 {[%emt 0:12:17]} f5 {[%emt 0:21:26]} 19. Qb6 {[%emt 0:04:08]} Rac8 {[%emt 0:00:46]} 20. Qxc7 {[%emt 0:11:58]} Rxc7 {[%emt 0:00:02]} 21. Rb6 {[%emt 0:00:35]} Rd7 {[%emt 0:16:43]} 22. exf5 {[%emt 0:04:34]} gxf5 {[%emt 0:06:42]} 23. Rdb1 $11 {[%emt 0:08:43]} Rc8 {[%emt 0:06:15]} 24. R1b4 {[%emt 0:01:52]} d5 {[%emt 0:02:37]} 25. cxd5 {[%emt 0:06:39]} Rxd5 {[%emt 0:03:08]} 26. c4 {[%emt 0:01:59]} Rd7 {[%emt 0:01:18]} 27. Ra4 {[%emt 0:00:42]} Nc6 {[%emt 0:01:11]} 28. Nb3 {[%emt 0:00:29]} Nd4 {[%emt 0:02:16]} 29. Nxd4 {[%emt 0:00:15]} Rxd4 {[%emt 0:02:53]} 30. Be3 {[%emt 0:02:10]} Rd7 {[%emt 0:00:09]} 31. Rab4 {[%emt 0:00:07]} f4 {[%emt 0:00:35]} 32. Bc1 {[%emt 0:00:08]} Rcd8 {[%emt 0:01:59]} 33. h3 {[%emt 0:00:21]} Rd1+ {[%emt 0:00:59]} 34. Bxd1 {[%emt 0:00:04]} Rxd1+ {[%emt 0:00:01]} 35. Kh2 {[%emt 0:00:01]} Rxc1 {[%emt 0:00:02]} 36. Rxb7 {[%emt 0:01:07]} Rxc4 {[%emt 0:01:02]} 37. R4b6 {[%emt 0:00:32]} Ra4 {[%emt 0:01:39]} 38. Ra7 {[%emt 0:00:27]} Rxa2 {[%emt 0:01:22]} 39. Rb8+ {[%emt 0:00:09]} 1-0

[Event "EYCC 2017"]
[Site "Mamaia"]
[Date "2017.09.12"]
[Round "7"]
[White "Naymanova, Patricie"]
[Black "Goraj, Barbara"]
[Result "0-1"]
[ECO "A48"]
[WhiteElo "1628"]
[BlackElo "1711"]
[Annotator "NA RC"]
[PlyCount "80"]
[EventDate "2017.??.??"]
[EventType "swiss"]
[EventCountry "ROU"]
[SourceTitle "playchess.com"]
[Source "ChessBase"]
[SourceQuality "1"]
[TimeControl "40/5400+30:1800+30"]

1. d4 {[%emt 0:00:00]} Nf6 {[%emt 0:00:12]} 2. Nf3 {[%emt 0:00:00]} g6 {[%emt 0:00:17]} 3. Bf4 {[%emt 0:00:00]} Bg7 {[%emt 0:00:29]} 4. e3 {[%emt 0:00:06]} O-O {[%emt 0:00:24]} 5. Bd3 {[%emt 0:00:08]} d6 {[%emt 0:00:38]} 6. h3 {[%emt 0:00:44]} Nfd7 {[%emt 0:00:41]} 7. Bh2 {[%emt 0:00:17]} e5 {[%emt 0:01:10]} 8. dxe5 {[%emt 0:02:20]} dxe5 {[%emt 0:01:27]} 9. c3 {[%emt 0:00:51]} Qe7 {[%emt 0:05:11]} 10. Nbd2 {[%emt 0:03:18]} Nc5 {[%emt 0:04:43]} 11. Bc2 {[%emt 0:04:14]} a5 {[%emt 0:01:31]} 12. Qe2 {[%emt 0:02:55]} b6 {[%emt 0:02:18]} 13. O-O {[%emt 0:02:49]} Ba6 {[%emt 0:01:27]} 14. c4 {[%emt 0:00:43]} Nc6 {[%emt 0:01:58]} 15. Ne4 {[%emt 0:03:10]} f5 {[%emt 0:06:46]} 16. Nxc5 {[%emt 0:03:22]} Qxc5 {[%emt 0:01:22]} 17. Rad1 {[%emt 0:05:47]} Bxc4 {[%emt 0:13:54]} 18. Qxc4+ {[%emt 0:00:20]} Qxc4 {[%emt 0:00:43]} 19. Bb3 {[%emt 0:00:03]} Qxb3 {[%emt 0:01:16]} 20. axb3 {[%emt 0:00:07]} Rfd8 {[%emt 0:02:46]} 21. Rc1 {[%emt 0:00:30]} Rd6 {[%emt 0:00:32]} 22. Rc2 {[%emt 0:01:04]} Rad8 {[%emt 0:01:27]} 23. Rfc1 {[%emt 0:01:05]} Rd1+ {[%emt 0:00:40]} 24. Ne1 {[%emt 0:00:13]} Rxc1 {[%emt 0:01:05]} 25. Rxc1 {[%emt 0:00:04]} Rd6 {[%emt 0:00:34]} 26. Kf1 {[%emt 0:00:45]} Kf7 {[%emt 0:01:05]} 27. Nc2 {[%emt 0:01:32]} Ke7 {[%emt 0:07:22]} 28. Na3 {[%emt 0:01:41]} Kd7 {[%emt 0:03:03]} 29. Ke2 {[%emt 0:04:52]} Rd5 {[%emt 0:11:55]} 30. Nc4 {[%emt 0:07:24]} b5 {[%emt 0:02:44]} 31. Nd2 {[%emt 0:05:57]} Bf8 {[%emt 0:08:18]} 32. Nf3 {[%emt 0:02:27]} Be7 {[%emt 0:01:30]} 33. g4 {[%emt 0:02:37]} e4 {[%emt 0:04:43]} 34. Ne1 {[%emt 0:03:02]} Bd6 {[%emt 0:05:47]} 35. Bg1 {[%emt 0:02:32]} Be5 {[%emt 0:00:46]} 36. Rb1 {[%emt 0:01:13]} h6 {[%emt 0:03:13]} 37. f4 {[%emt 0:00:44]} Bf6 {[%emt 0:01:36]} 38. gxf5 {[%emt 0:00:57]} Rxf5 {[%emt 0:02:40]} 39. Nc2 {[%emt 0:01:12]} Rh5 {[%emt 0:01:02]} 40. Rd1+ {[%emt 0:00:00]} Ke6 0-1

[Event "EYCC 2017"]
[Site "Mamaia"]
[Date "2017.09.12"]
[Round "7"]
[White "Mikheeva, Galina"]
[Black "Gasimova, Samra"]
[Result "1-0"]
[ECO "E71"]
[WhiteElo "1596"]
[BlackElo "1578"]
[Annotator "NA RC"]
[PlyCount "99"]
[EventDate "2017.??.??"]
[EventType "swiss"]
[EventCountry "ROU"]
[SourceTitle "playchess.com"]
[Source "ChessBase"]
[SourceQuality "1"]
[TimeControl "40/5400+30:1800+30"]

1. d4 {[%emt 0:00:00]} Nf6 {[%emt 0:00:10]} 2. c4 {[%emt 0:00:00]} g6 {[%emt 0:00:06]} 3. Nc3 {[%emt 0:00:00]} Bg7 {[%emt 0:00:07]} 4. e4 {[%emt 0:00:04]} d6 {[%emt 0:00:24]} 5. h3 {[%emt 0:00:51]} O-O {[%emt 0:00:36]} 6. Bg5 {[%emt 0:00:16]} c5 {[%emt 0:04:21]} 7. d5 {[%emt 0:00:06]} e6 {[%emt 0:11:51]} 8. Bd3 {[%emt 0:00:19]} exd5 {[%emt 0:05:02]} 9. exd5 {[%emt 0:00:10]} Re8+ {[%emt 0:01:36]} 10. Kf1 {[%emt 0:00:23]} Nbd7 {[%emt 0:05:11]} 11. Nf3 {[%emt 0:00:49]} a6 {[%emt 0:11:32]} 12. a4 {[%emt 0:00:38]} Ne5 {[%emt 0:02:31]} 13. Nxe5 {[%emt 0:00:16]} Rxe5 {[%emt 0:05:31]} 14. Bf4 {[%emt 0:00:04]} Re8 {[%emt 0:00:24]} 15. g4 {[%emt 0:07:00]} Qb6 {[%emt 0:09:15]} 16. Qd2 {[%emt 0:04:07]} Nd7 {[%emt 0:09:18]} 17. a5 {[%emt 0:03:13]} Qc7 {[%emt 0:01:02]} 18. Kg2 {[%emt 0:34:47]} Ne5 {[%emt 0:03:54]} 19. Rhe1 {[%emt 0:01:27]} Bd7 {[%emt 0:05:00]} 20. Bf1 {[%emt 0:05:28]} Qd8 {[%emt 0:07:55]} 21. Ne4 {[%emt 0:02:54]} Qc7 {[%emt 0:03:55]} 22. Nc3 {[%emt 0:14:52]} f5 {[%emt 0:03:19]} 23. f3 {[%emt 0:01:33]} fxg4 {[%emt 0:02:19]} 24. hxg4 {[%emt 0:03:53]} Rf8 {[%emt 0:00:31]} 25. Be2 {[%emt 0:00:48]} Rf7 {[%emt 0:01:14]} 26. Rf1 {[%emt 0:01:15]} Raf8 {[%emt 0:00:35]} 27. Bg3 {[%emt 0:01:03]} Qd8 {[%emt 0:00:53]} 28. Ne4 {[%emt 0:00:20]} Qe7 {[%emt 0:00:27]} 29. Ra3 {[%emt 0:04:12]} Re8 {[%emt 0:03:18]} 30. Rh1 {[%emt 0:06:28]} Qf8 {[%emt 0:02:12]} 31. Rb3 {[%emt 0:04:02]} Bc8 {[%emt 0:00:35]} 32. Ra3 {[%emt 0:03:16]} Bd7 {[%emt 0:00:16]} 33. Rb3 {[%emt 0:00:12]} Bc8 {[%emt 0:00:06]} 34. Ra3 {[%emt 0:01:38]} Bd7 {[%emt 0:01:22]} 35. Qe3 {[%emt 0:00:10]} Rd8 {[%emt 0:00:34]} 36. Rb3 {[%emt 0:00:51]} Bc8 {[%emt 0:00:19]} 37. Ra3 {[%emt 0:00:31]} Bd7 {[%emt 0:00:22]} 38. Rb3 {[%emt 0:00:03]} Bc8 {[%emt 0:00:06]} 39. Rb6 {[%emt 0:00:53]} Qe7 {[%emt 0:01:20]} 40. Bh4 {[%emt 0:00:00]} Bf6 {[%emt 0:00:29]} 41. Bxf6 {[%emt 0:01:56]} Rxf6 {[%emt 0:03:36]} 42. Nxf6+ {[%emt 0:00:12]} Qxf6 {[%emt 0:00:07]} 43. Qxc5 {[%emt 0:09:07]} Qxf3+ {[%emt 0:07:22]} 44. Bxf3 {[%emt 0:00:22]} dxc5 {[%emt 0:00:12]} 45. b3 {[%emt 0:02:29]} Rf8 {[%emt 0:05:32]} 46. Rf1 {[%emt 0:01:51]} Nd3 {[%emt 0:01:30]} 47. d6 {[%emt 0:04:32]} Nf4+ {[%emt 0:04:54]} 48. Kg3 {[%emt 0:00:57]} Ne6 {[%emt 0:02:57]} 49. Re1 {[%emt 0:01:23]} Rf7 {[%emt 0:03:06]} 50. Bd5 {[%emt 0:00:19]} 1-0

[Event "EYCC 2017"]
[Site "Mamaia"]
[Date "2017.09.12"]
[Round "7"]
[White "Katter, Katharina"]
[Black "Karavitaki, Evaggelia"]
[Result "1/2-1/2"]
[ECO "D05"]
[WhiteElo "1591"]
[BlackElo "1703"]
[Annotator "NA"]
[PlyCount "116"]
[EventDate "2017.??.??"]
[EventType "swiss"]
[EventCountry "ROU"]
[SourceTitle "playchess.com"]
[Source "ChessBase"]
[SourceQuality "1"]
[TimeControl "40/5400+30:1800+30"]

1. d4 {[%emt 0:00:00]} Nf6 {[%emt 0:00:13]} 2. Nf3 {[%emt 0:00:00]} e6 {[%emt 0:00:23]} 3. e3 {[%emt 0:00:18]} d5 {[%emt 0:00:21]} 4. Bd3 {[%emt 0:00:25]} c5 {[%emt 0:00:55]} 5. b3 {[%emt 0:00:44]} Be7 {[%emt 0:03:40]} 6. Bb2 {[%emt 0:00:26]} b6 {[%emt 0:06:39]} 7. O-O {[%emt 0:00:52]} Ba6 {[%emt 0:04:59]} 8. c4 {[%emt 0:03:18]} dxc4 {[%emt 0:07:43]} 9. bxc4 {[%emt 0:02:44]} Nbd7 {[%emt 0:03:48]} 10. Qe2 {[%emt 0:06:43]} cxd4 {[%emt 0:05:02]} 11. exd4 {[%emt 0:02:01]} O-O {[%emt 0:01:10]} 12. Nbd2 {[%emt 0:05:08]} Rc8 {[%emt 0:04:32]} 13. Rfe1 {[%emt 0:03:44]} Bd6 {[%emt 0:07:14]} 14. Rac1 {[%emt 0:05:24]} Bb8 {[%emt 0:04:00]} 15. Bb1 {[%emt 0:09:51]} Qc7 {[%emt 0:03:05]} 16. Ne5 {[%emt 0:04:56]} Bb7 {[%emt 0:04:02]} 17. f4 {[%emt 0:09:03]} Rfd8 {[%emt 0:11:31]} 18. Ndf3 {[%emt 0:11:00]} Bxf3 {[%emt 0:17:44]} 19. Qxf3 {[%emt 0:01:18]} Nxe5 {[%emt 0:02:23]} 20. fxe5 {[%emt 0:01:39]} Ne8 {[%emt 0:00:33]} 21. Rf1 {[%emt 0:08:14]} g6 {[%emt 0:01:43]} 22. Be4 {[%emt 0:05:17]} Qd7 {[%emt 0:01:37]} 23. d5 {[%emt 0:03:41]} Ng7 {[%emt 0:01:52]} 24. d6 {[%emt 0:02:43]} Rf8 {[%emt 0:02:42]} 25. Ba3 {[%emt 0:01:56]} Nf5 {[%emt 0:00:49]} 26. Rfd1 {[%emt 0:01:42]} f6 {[%emt 0:02:11]} 27. g4 {[%emt 0:03:21]} fxe5 {[%emt 0:00:32]} 28. gxf5 {[%emt 0:01:15]} exf5 {[%emt 0:00:02]} 29. Bd5+ {[%emt 0:02:45]} Kg7 {[%emt 0:00:11]} 30. Qe3 {[%emt 0:01:27]} Bxd6 {[%emt 0:00:40]} 31. Bxd6 {[%emt 0:00:19]} Qxd6 {[%emt 0:00:02]} 32. Bb7 {[%emt 0:00:51]} Qc5 {[%emt 0:00:44]} 33. Rd7+ {[%emt 0:01:27]} Rf7 {[%emt 0:00:33]} 34. Rxf7+ {[%emt 0:00:28]} Kxf7 {[%emt 0:00:02]} 35. Qxc5 {[%emt 0:00:16]} Rxc5 {[%emt 0:00:09]} 36. Bd5+ {[%emt 0:00:46]} Ke7 {[%emt 0:00:31]} 37. Rd1 {[%emt 0:01:18]} h6 {[%emt 0:00:57]} 38. Kf2 {[%emt 0:00:27]} Kf6 {[%emt 0:01:16]} 39. Kg3 {[%emt 0:00:47]} e4 {[%emt 0:01:16]} 40. Kf4 {[%emt 0:00:00]} g5+ {[%emt 0:00:11]} 41. Ke3 {[%emt 0:00:51]} Ke5 {[%emt 0:00:17]} 42. Ke2 {[%emt 0:01:13]} f4 {[%emt 0:00:55]} 43. a4 {[%emt 0:00:37]} a6 {[%emt 0:01:07]} 44. Bf7 {[%emt 0:01:47]} b5 {[%emt 0:02:38]} 45. axb5 {[%emt 0:01:31]} axb5 {[%emt 0:00:13]} 46. cxb5 {[%emt 0:03:20]} Rxb5 {[%emt 0:00:17]} 47. Rd2 {[%emt 0:02:50]} g4 {[%emt 0:01:57]} 48. Bh5 {[%emt 0:00:40]} f3+ {[%emt 0:00:14]} 49. Kf2 {[%emt 0:00:29]} Kf4 {[%emt 0:00:10]} 50. Ke1 {[%emt 0:00:58]} Rb1+ {[%emt 0:00:16]} 51. Rd1 {[%emt 0:00:57]} f2+ {[%emt 0:00:23]} 52. Kxf2 {[%emt 0:00:39]} Rxd1 {[%emt 0:00:07]} 53. Ke2 {[%emt 0:00:13]} Rh1 {[%emt 0:00:10]} 54. h4 {[%emt 0:00:11]} Rxh4 {[%emt 0:00:08]} 55. Bf7 {[%emt 0:00:11]} Rh2+ {[%emt 0:00:08]} 56. Kf1 {[%emt 0:00:07]} e3 {[%emt 0:00:05]} 57. Kg1 {[%emt 0:00:24]} e2 {[%emt 0:00:33]} 58. Bh5 {[%emt 0:00:11]} Kg3 {[%emt 0:00:42]} 1/2-1/2